[Event "*** Titled Tuesday Blitz"]
[Site "Chess.com"]
[Date "2021.02.16"]
[Round "9"]
[White "Fandorine"]
[Black "Margency"]
[Result "1-0"]
[WhiteElo "2847"]
[BlackElo "2682"]
[TimeControl "180+1"]
[EndTime "11:44:46 PST"]
[Termination "Fandorine won by resignation"]

1. c4 {[%clk 0:03:00.9]} 1... e6 {[%clk 0:02:59.9]} 2. g3 {[%clk 0:03:00.8]}
2... d5 {[%clk 0:03:00.3]} 3. Bg2 {[%clk 0:03:01.4]} 3... Nf6 {[%clk 0:03:00.8]}
4. Nf3 {[%clk 0:03:01.7]} 4... c5 {[%clk 0:03:01.2]} 5. O-O {[%clk 0:03:00.9]}
5... Be7 {[%clk 0:03:01.6]} 6. b3 {[%clk 0:03:00]} 6... O-O {[%clk 0:03:01.8]}
7. Bb2 {[%clk 0:03:00.2]} 7... b6 {[%clk 0:03:02.1]} 8. e3 {[%clk 0:03:00]} 8...
Nbd7 {[%clk 0:03:00.9]} 9. Nc3 {[%clk 0:02:59.4]} 9... Ba6 {[%clk 0:02:57.7]}
10. Qe2 {[%clk 0:02:57]} 10... Rc8 {[%clk 0:02:55.3]} 11. Rfd1 {[%clk
0:02:51.4]} 11... Qc7 {[%clk 0:02:54.9]} 12. Rac1 {[%clk 0:02:50.7]} 12... Qb8
{[%clk 0:02:54]} 13. d3 {[%clk 0:02:50.2]} 13... Bb7 {[%clk 0:02:51.3]} 14. Ne1
{[%clk 0:02:49.9]} 14... Rfd8 {[%clk 0:02:50.3]} 15. f4 {[%clk 0:02:49.6]} 15...
Qa8 {[%clk 0:02:32.8]} 16. g4 {[%clk 0:02:44.5]} 16... d4 {[%clk 0:02:14.5]} 17.
exd4 {[%clk 0:02:41.5]} 17... cxd4 {[%clk 0:02:12.9]} 18. Nb5 {[%clk 0:02:40.7]}
18... Bxg2 {[%clk 0:02:12.1]} 19. Nxg2 {[%clk 0:02:40.6]} 19... Nf8 {[%clk
0:02:07.4]} 20. f5 {[%clk 0:02:21.1]} 20... a6 {[%clk 0:02:05.3]} 21. Na3 {[%clk
0:02:16.7]} 21... Bxa3 {[%clk 0:01:58.1]} 22. Bxa3 {[%clk 0:02:15]} 22... exf5
{[%clk 0:01:58.7]} 23. gxf5 {[%clk 0:02:05.6]} 23... Re8 {[%clk 0:01:58.9]} 24.
Qf2 {[%clk 0:02:04]} 24... N8d7 {[%clk 0:01:56.3]} 25. Bd6 {[%clk 0:02:01.4]}
25... Ng4 {[%clk 0:01:49]} 26. Qxd4 {[%clk 0:01:50.3]} 26... Re2 {[%clk
0:01:39.2]} 27. Qxg4 {[%clk 0:01:48.6]} 27... Nf6 {[%clk 0:01:35.6]} 28. Qxe2
{[%clk 0:01:48.3]} 1-0

[Event "*** Titled Tuesday Blitz"]
[Site "Chess.com"]
[Date "2021.02.16"]
[Round "9"]
[White "FMOlexandrProhorov"]
[Black "cstevens1"]
[Result "0-1"]
[WhiteElo "2126"]
[BlackElo "2608"]
[TimeControl "180+1"]
[EndTime "11:44:51 PST"]
[Termination "cstevens1 won by checkmate"]

1. e4 {[%clk 0:03:00.9]} 1... c5 {[%clk 0:02:11.8]} 2. c3 {[%clk 0:02:56.5]}
2... e6 {[%clk 0:01:16.1]} 3. d4 {[%clk 0:02:55.4]} 3... d5 {[%clk 0:01:11.1]}
4. exd5 {[%clk 0:02:55.7]} 4... exd5 {[%clk 0:01:10.7]} 5. Nf3 {[%clk
0:02:56.6]} 5... Nc6 {[%clk 0:01:10.9]} 6. Bb5 {[%clk 0:02:57.5]} 6... Nf6
{[%clk 0:01:11]} 7. O-O {[%clk 0:02:58.3]} 7... Bd6 {[%clk 0:01:11.3]} 8. Re1+
{[%clk 0:02:59.2]} 8... Be6 {[%clk 0:01:10.7]} 9. Ng5 {[%clk 0:02:57.6]} 9...
O-O {[%clk 0:01:10.2]} 10. Nxe6 {[%clk 0:02:57.1]} 10... fxe6 {[%clk 0:01:11.1]}
11. Rxe6 {[%clk 0:02:55.6]} 11... Ne4 {[%clk 0:01:01.9]} 12. Be3 {[%clk
0:02:32.4]} 12... Bxh2+ {[%clk 0:00:30.4]} 13. Kxh2 {[%clk 0:02:28.5]} 13...
Qh4+ {[%clk 0:00:30.6]} 14. Kg1 {[%clk 0:02:27.9]} 14... Nxf2 {[%clk 0:00:30.5]}
15. Qe2 {[%clk 0:02:15.7]} 15... Qh1# {[%clk 0:00:30]} 0-1

[Event "*** Titled Tuesday Blitz"]
[Site "Chess.com"]
[Date "2021.02.16"]
[Round "9"]
[White "AndrewMaco"]
[Black "ZEN-22"]
[Result "0-1"]
[WhiteElo "2655"]
[BlackElo "2514"]
[TimeControl "180+1"]
[EndTime "11:45:04 PST"]
[Termination "ZEN-22 won by resignation"]

1. e4 {[%clk 0:03:00.9]} 1... d5 {[%clk 0:02:55.4]} 2. exd5 {[%clk 0:02:58.5]}
2... c6 {[%clk 0:02:54.1]} 3. d4 {[%clk 0:02:51.9]} 3... cxd5 {[%clk 0:02:53.1]}
4. Nf3 {[%clk 0:02:47.4]} 4... Nc6 {[%clk 0:02:54]} 5. Ne5 {[%clk 0:02:42.9]}
5... Nf6 {[%clk 0:02:30.1]} 6. Bb5 {[%clk 0:02:36.4]} 6... Bd7 {[%clk
0:02:13.8]} 7. Nxd7 {[%clk 0:02:35.6]} 7... Qxd7 {[%clk 0:02:09.6]} 8. O-O
{[%clk 0:02:34.7]} 8... a6 {[%clk 0:02:09.3]} 9. Be2 {[%clk 0:02:30.9]} 9... g6
{[%clk 0:02:03.5]} 10. c3 {[%clk 0:02:30.9]} 10... Bg7 {[%clk 0:02:03.6]} 11.
Nd2 {[%clk 0:02:31.1]} 11... O-O {[%clk 0:02:04]} 12. Nf3 {[%clk 0:02:30.6]}
12... Ne4 {[%clk 0:02:02.4]} 13. Bd3 {[%clk 0:02:30.7]} 13... f5 {[%clk
0:02:02.1]} 14. Bf4 {[%clk 0:02:27.2]} 14... Rad8 {[%clk 0:02:01.6]} 15. Re1
{[%clk 0:02:27.2]} 15... h6 {[%clk 0:01:59.3]} 16. h4 {[%clk 0:02:24.5]} 16...
Kh7 {[%clk 0:01:57.9]} 17. g3 {[%clk 0:02:24.1]} 17... Bf6 {[%clk 0:01:57.3]}
18. Kg2 {[%clk 0:02:23.4]} 18... Rh8 {[%clk 0:01:55]} 19. Ne5 {[%clk 0:02:07.3]}
19... Bxe5 {[%clk 0:01:43.5]} 20. dxe5 {[%clk 0:02:04.3]} 20... g5 {[%clk
0:01:37.7]} 21. hxg5 {[%clk 0:01:54.8]} 21... hxg5 {[%clk 0:01:37.1]} 22. Bxe4
{[%clk 0:01:54.9]} 22... fxe4 {[%clk 0:01:36.2]} 23. Qh5+ {[%clk 0:01:53.8]}
23... Kg7 {[%clk 0:01:34.1]} 24. Qxg5+ {[%clk 0:01:54.3]} 24... Kf7 {[%clk
0:01:33.3]} 25. Be3 {[%clk 0:01:46.4]} 25... Qh3+ {[%clk 0:01:30.9]} 0-1

[Event "*** Titled Tuesday Blitz"]
[Site "Chess.com"]
[Date "2021.02.16"]
[Round "9"]
[White "alejogarcia1999"]
[Black "esapunov"]
[Result "0-1"]
[WhiteElo "2497"]
[BlackElo "2666"]
[TimeControl "180+1"]
[EndTime "11:45:07 PST"]
[Termination "esapunov won by resignation"]

1. d4 {[%clk 0:03:00.9]} 1... Nf6 {[%clk 0:02:59.7]} 2. c4 {[%clk 0:03:01.1]}
2... g6 {[%clk 0:03:00.1]} 3. Nc3 {[%clk 0:03:00.8]} 3... Bg7 {[%clk 0:03:00.6]}
4. e4 {[%clk 0:03:00.7]} 4... O-O {[%clk 0:03:01.2]} 5. h3 {[%clk 0:03:00.9]}
5... d6 {[%clk 0:03:01.3]} 6. Be3 {[%clk 0:03:01.1]} 6... a6 {[%clk 0:03:01.8]}
7. Nf3 {[%clk 0:02:58.4]} 7... Nbd7 {[%clk 0:03:02]} 8. Be2 {[%clk 0:02:57.9]}
8... c5 {[%clk 0:03:02.6]} 9. d5 {[%clk 0:02:56.4]} 9... b5 {[%clk 0:03:02.3]}
10. cxb5 {[%clk 0:02:55.7]} 10... axb5 {[%clk 0:03:02.3]} 11. Bxb5 {[%clk
0:02:55.8]} 11... Nxe4 {[%clk 0:03:01.9]} 12. Nxe4 {[%clk 0:02:51.7]} 12... Qa5+
{[%clk 0:03:01.2]} 13. Nc3 {[%clk 0:02:50.8]} 13... Bxc3+ {[%clk 0:03:01.3]} 14.
bxc3 {[%clk 0:02:50.8]} 14... Qxb5 {[%clk 0:03:01.8]} 15. Qe2 {[%clk 0:02:47.4]}
15... Qxe2+ {[%clk 0:03:01.2]} 16. Kxe2 {[%clk 0:02:47.3]} 16... Ba6+ {[%clk
0:03:02.1]} 17. Kd2 {[%clk 0:02:47.4]} 17... Bc4 {[%clk 0:03:02.3]} 18. a4
{[%clk 0:02:38.7]} 18... Ra7 {[%clk 0:02:37.1]} 19. Bg5 {[%clk 0:02:30.5]} 19...
f6 {[%clk 0:02:36.6]} 20. Bf4 {[%clk 0:02:28.2]} 20... Rfa8 {[%clk 0:02:35.6]}
21. Rhe1 {[%clk 0:02:26.8]} 21... Kf7 {[%clk 0:02:35.4]} 22. Reb1 {[%clk
0:02:03.1]} 22... Bxd5 {[%clk 0:02:33.1]} 23. Ne1 {[%clk 0:01:47.1]} 23... Rxa4
{[%clk 0:02:30]} 24. Rxa4 {[%clk 0:01:48]} 24... Rxa4 {[%clk 0:02:30]} 25. Rb2
{[%clk 0:01:48]} 25... e5 {[%clk 0:02:26.5]} 26. Be3 {[%clk 0:01:47.7]} 26... g5
{[%clk 0:02:21.3]} 27. f3 {[%clk 0:01:47.2]} 27... h5 {[%clk 0:02:19.7]} 28. Ke2
{[%clk 0:01:38.8]} 28... Ke6 {[%clk 0:02:16.6]} 29. Kd2 {[%clk 0:01:38.3]} 29...
g4 {[%clk 0:02:10.3]} 30. fxg4 {[%clk 0:01:35.5]} 30... hxg4 {[%clk 0:02:10.4]}
31. h4 {[%clk 0:01:34.4]} 31... f5 {[%clk 0:02:10.7]} 32. g3 {[%clk 0:01:34.5]}
32... f4 {[%clk 0:02:10.6]} 33. gxf4 {[%clk 0:01:33.6]} 33... exf4 {[%clk
0:02:10.9]} 34. Bf2 {[%clk 0:01:28.5]} 34... g3 {[%clk 0:02:09.7]} 35. Bg1
{[%clk 0:01:28.5]} 35... f3 {[%clk 0:02:09.8]} 36. Ke3 {[%clk 0:01:25.6]} 36...
Re4+ {[%clk 0:01:58.8]} 0-1

[Event "*** Titled Tuesday Blitz"]
[Site "Chess.com"]
[Date "2021.02.16"]
[Round "9"]
[White "milenapn"]
[Black "Dii210"]
[Result "0-1"]
[WhiteElo "2130"]
[BlackElo "2365"]
[TimeControl "180+1"]
[EndTime "11:45:14 PST"]
[Termination "Dii210 won by checkmate"]

1. e4 {[%clk 0:03:00.9]} 1... c5 {[%clk 0:02:59.9]} 2. Nf3 {[%clk 0:03:00.9]}
2... e6 {[%clk 0:03:00.1]} 3. d4 {[%clk 0:03:01.3]} 3... cxd4 {[%clk 0:03:01]}
4. Nxd4 {[%clk 0:03:02]} 4... Nc6 {[%clk 0:03:01]} 5. Nc3 {[%clk 0:03:01.4]}
5... Qc7 {[%clk 0:03:00.6]} 6. Be3 {[%clk 0:02:57.7]} 6... a6 {[%clk 0:03:00.6]}
7. Be2 {[%clk 0:02:57.7]} 7... Nf6 {[%clk 0:03:00.6]} 8. O-O {[%clk 0:02:57.3]}
8... Bb4 {[%clk 0:02:59.8]} 9. Nxc6 {[%clk 0:02:44.7]} 9... bxc6 {[%clk
0:03:00.7]} 10. Qd3 {[%clk 0:02:44.5]} 10... O-O {[%clk 0:02:53.5]} 11. f4
{[%clk 0:02:41.9]} 11... d5 {[%clk 0:02:47.5]} 12. e5 {[%clk 0:02:38.5]} 12...
Nd7 {[%clk 0:02:46.7]} 13. Bf3 {[%clk 0:02:25.4]} 13... Bb7 {[%clk 0:02:45.6]}
14. Ne2 {[%clk 0:02:22.3]} 14... Be7 {[%clk 0:02:43.9]} 15. g4 {[%clk
0:02:14.6]} 15... c5 {[%clk 0:02:42.5]} 16. c3 {[%clk 0:02:13.6]} 16... Rfd8
{[%clk 0:02:39.1]} 17. Ng3 {[%clk 0:02:13.3]} 17... a5 {[%clk 0:02:32.3]} 18.
Qe2 {[%clk 0:02:12.7]} 18... Ba6 {[%clk 0:02:31.9]} 19. Qg2 {[%clk 0:02:11.8]}
19... Bxf1 {[%clk 0:02:30.5]} 20. Rxf1 {[%clk 0:02:12.7]} 20... Rab8 {[%clk
0:02:30.8]} 21. Nh5 {[%clk 0:02:06.9]} 21... g6 {[%clk 0:02:25.7]} 22. Ng3
{[%clk 0:02:05.2]} 22... a4 {[%clk 0:02:22.7]} 23. h4 {[%clk 0:02:04.9]} 23...
Bxh4 {[%clk 0:02:20.5]} 24. Kh2 {[%clk 0:01:49.7]} 24... Qb6 {[%clk 0:02:12]}
25. Rf2 {[%clk 0:01:42.8]} 25... d4 {[%clk 0:02:09.1]} 26. cxd4 {[%clk
0:01:28.8]} 26... cxd4 {[%clk 0:02:10]} 27. Bc1 {[%clk 0:01:28.9]} 27... Rdc8
{[%clk 0:02:08.4]} 28. Rf1 {[%clk 0:01:27.3]} 28... Bxg3+ {[%clk 0:01:48.6]} 29.
Kxg3 {[%clk 0:01:27.1]} 29... d3 {[%clk 0:01:48]} 30. Rh1 {[%clk 0:01:19.9]}
30... Rc2 {[%clk 0:01:46.2]} 31. Qh3 {[%clk 0:01:19.8]} 31... Qf2# {[%clk
0:01:45.5]} 0-1

[Event "*** Titled Tuesday Blitz"]
[Site "Chess.com"]
[Date "2021.02.16"]
[Round "9"]
[White "HanSchut"]
[Black "CraiggoryC"]
[Result "1-0"]
[WhiteElo "2232"]
[BlackElo "2205"]
[TimeControl "180+1"]
[EndTime "11:45:15 PST"]
[Termination "HanSchut won by checkmate"]

1. e4 {[%clk 0:03:00.9]} 1... e6 {[%clk 0:02:58.7]} 2. d4 {[%clk 0:03:00.7]}
2... d5 {[%clk 0:02:59.1]} 3. Nd2 {[%clk 0:03:01.3]} 3... Be7 {[%clk 0:02:58.6]}
4. Bd3 {[%clk 0:03:01]} 4... c5 {[%clk 0:02:58.2]} 5. dxc5 {[%clk 0:03:00.7]}
5... Nf6 {[%clk 0:02:57.1]} 6. Qe2 {[%clk 0:03:00.5]} 6... O-O {[%clk
0:02:53.9]} 7. Ngf3 {[%clk 0:02:59.4]} 7... a5 {[%clk 0:02:52.6]} 8. h4 {[%clk
0:02:51.5]} 8... dxe4 {[%clk 0:02:03.5]} 9. Nxe4 {[%clk 0:02:52.4]} 9... Nxe4
{[%clk 0:02:03.4]} 10. Qxe4 {[%clk 0:02:50.4]} 10... f5 {[%clk 0:02:03.9]} 11.
Qc4 {[%clk 0:02:30.8]} 11... Qc7 {[%clk 0:01:44.4]} 12. Be3 {[%clk 0:02:15]}
12... Na6 {[%clk 0:01:40.9]} 13. Ng5 {[%clk 0:02:06.6]} 13... Nxc5 {[%clk
0:01:22.1]} 14. O-O-O {[%clk 0:01:45.5]} 14... Nxd3+ {[%clk 0:00:46.8]} 15. Qxd3
{[%clk 0:01:45.1]} 15... f4 {[%clk 0:00:36.5]} 16. Qxh7# {[%clk 0:01:40.5]} 1-0

[Event "*** Titled Tuesday Blitz"]
[Site "Chess.com"]
[Date "2021.02.16"]
[Round "9"]
[White "SanchezKelvin"]
[Black "szefru"]
[Result "1-0"]
[WhiteElo "2397"]
[BlackElo "2253"]
[TimeControl "180+1"]
[EndTime "11:45:38 PST"]
[Termination "SanchezKelvin won by checkmate"]

1. d4 {[%clk 0:02:56.6]} 1... d5 {[%clk 0:02:59.5]} 2. c4 {[%clk 0:02:56.9]}
2... c6 {[%clk 0:02:59.6]} 3. Nf3 {[%clk 0:02:56]} 3... Nf6 {[%clk 0:02:59.9]}
4. Nc3 {[%clk 0:02:56.1]} 4... e6 {[%clk 0:03:00]} 5. Bg5 {[%clk 0:02:55.5]}
5... Nbd7 {[%clk 0:03:00.1]} 6. e3 {[%clk 0:02:55.3]} 6... a6 {[%clk 0:03:00]}
7. Qc2 {[%clk 0:02:53.7]} 7... Be7 {[%clk 0:02:59.6]} 8. h4 {[%clk 0:02:52.9]}
8... O-O {[%clk 0:02:58.9]} 9. O-O-O {[%clk 0:02:52.3]} 9... Qa5 {[%clk
0:02:55]} 10. Bxf6 {[%clk 0:02:49.2]} 10... Nxf6 {[%clk 0:02:51.3]} 11. Ne5
{[%clk 0:02:48.4]} 11... Nd7 {[%clk 0:02:37.6]} 12. Bd3 {[%clk 0:02:44.7]} 12...
f5 {[%clk 0:02:30.3]} 13. f4 {[%clk 0:02:38.2]} 13... Nxe5 {[%clk 0:02:29.6]}
14. fxe5 {[%clk 0:02:32.7]} 14... dxc4 {[%clk 0:02:23.1]} 15. Bxc4 {[%clk
0:02:30]} 15... b5 {[%clk 0:02:22.9]} 16. Bb3 {[%clk 0:02:24.1]} 16... c5 {[%clk
0:02:11.9]} 17. dxc5 {[%clk 0:02:19.3]} 17... Bxc5 {[%clk 0:02:12.8]} 18. e4
{[%clk 0:02:14.3]} 18... Be3+ {[%clk 0:02:00.5]} 19. Kb1 {[%clk 0:02:13.7]}
19... f4 {[%clk 0:01:59.8]} 20. Rd6 {[%clk 0:02:08.2]} 20... Re8 {[%clk
0:01:48.8]} 21. Qe2 {[%clk 0:01:50.5]} 21... Bc5 {[%clk 0:01:46.4]} 22. Rc6
{[%clk 0:01:39.8]} 22... Bd4 {[%clk 0:01:38]} 23. Qh5 {[%clk 0:01:30.3]} 23...
Bd7 {[%clk 0:01:31.6]} 24. Rd6 {[%clk 0:01:27.1]} 24... Bxc3 {[%clk 0:01:23.9]}
25. Rxd7 {[%clk 0:01:26.4]} 25... Bb4 {[%clk 0:01:04]} 26. Qf7+ {[%clk 0:01:25]}
26... Kh8 {[%clk 0:01:03.6]} 27. Qxg7# {[%clk 0:01:25.9]} 1-0

[Event "*** Titled Tuesday Blitz"]
[Site "Chess.com"]
[Date "2021.02.16"]
[Round "9"]
[White "onetowin"]
[Black "Piccadilly123"]
[Result "0-1"]
[WhiteElo "2019"]
[BlackElo "2247"]
[TimeControl "180+1"]
[EndTime "11:45:53 PST"]
[Termination "Piccadilly123 won by checkmate"]

1. d4 {[%clk 0:03:00.9]} 1... d5 {[%clk 0:02:59.5]} 2. Nf3 {[%clk 0:03:01]} 2...
Nf6 {[%clk 0:02:58.9]} 3. g3 {[%clk 0:03:01.2]} 3... e6 {[%clk 0:02:58.1]} 4.
Bg2 {[%clk 0:03:01.4]} 4... Be7 {[%clk 0:02:58.7]} 5. O-O {[%clk 0:03:01.3]}
5... O-O {[%clk 0:02:59.3]} 6. c4 {[%clk 0:03:01.5]} 6... b6 {[%clk 0:02:58.1]}
7. Nc3 {[%clk 0:02:56.5]} 7... Bb7 {[%clk 0:02:58.1]} 8. Ne5 {[%clk 0:02:56.5]}
8... Nbd7 {[%clk 0:02:57.8]} 9. Qa4 {[%clk 0:02:52.7]} 9... c5 {[%clk
0:02:45.2]} 10. dxc5 {[%clk 0:02:35.2]} 10... Nxe5 {[%clk 0:02:41]} 11. f4
{[%clk 0:02:15.3]} 11... Nxc4 {[%clk 0:02:39.4]} 12. c6 {[%clk 0:02:14.9]} 12...
Bc8 {[%clk 0:02:31]} 13. b3 {[%clk 0:02:02]} 13... Bc5+ {[%clk 0:02:27.2]} 14.
Kh1 {[%clk 0:01:57.9]} 14... Ne3 {[%clk 0:02:24.5]} 15. Bxe3 {[%clk 0:01:51.8]}
15... Bxe3 {[%clk 0:02:25.4]} 16. f5 {[%clk 0:01:52.1]} 16... a6 {[%clk
0:02:23.4]} 17. Rf3 {[%clk 0:01:28.4]} 17... Bh6 {[%clk 0:02:08.5]} 18. h3
{[%clk 0:01:15.2]} 18... exf5 {[%clk 0:02:06.8]} 19. Rd3 {[%clk 0:01:10.4]}
19... Be6 {[%clk 0:02:06.5]} 20. Rad1 {[%clk 0:01:03.2]} 20... b5 {[%clk
0:01:59.9]} 21. Qb4 {[%clk 0:01:02.6]} 21... Qc7 {[%clk 0:01:57.8]} 22. g4
{[%clk 0:00:53.7]} 22... fxg4 {[%clk 0:01:53.4]} 23. hxg4 {[%clk 0:00:28.3]}
23... Nxg4 {[%clk 0:01:43.6]} 24. Qc5 {[%clk 0:00:21.5]} 24... Qh2# {[%clk
0:01:42.5]} 0-1

[Event "*** Titled Tuesday Blitz"]
[Site "Chess.com"]
[Date "2021.02.16"]
[Round "9"]
[White "Violord"]
[Black "ural58"]
[Result "1-0"]
[WhiteElo "2727"]
[BlackElo "2543"]
[TimeControl "180+1"]
[EndTime "11:45:58 PST"]
[Termination "Violord won by resignation"]

1. e4 {[%clk 0:02:54.9]} 1... d5 {[%clk 0:02:59.9]} 2. exd5 {[%clk 0:02:53.7]}
2... Qxd5 {[%clk 0:03:00]} 3. Nc3 {[%clk 0:02:53.3]} 3... Qa5 {[%clk 0:03:00.1]}
4. d4 {[%clk 0:02:53]} 4... Nf6 {[%clk 0:03:00.3]} 5. Nf3 {[%clk 0:02:53.1]}
5... Nc6 {[%clk 0:02:59.9]} 6. Bb5 {[%clk 0:02:49.8]} 6... Ne4 {[%clk
0:02:59.9]} 7. Qd3 {[%clk 0:02:47.1]} 7... Nxc3 {[%clk 0:02:59.7]} 8. bxc3
{[%clk 0:02:46]} 8... a6 {[%clk 0:02:59.9]} 9. Bxc6+ {[%clk 0:02:44.4]} 9...
bxc6 {[%clk 0:03:00.8]} 10. Ne5 {[%clk 0:02:43.3]} 10... f6 {[%clk 0:03:01.1]}
11. Nc4 {[%clk 0:02:42.6]} 11... Qf5 {[%clk 0:03:01]} 12. Ba3 {[%clk 0:02:39.2]}
12... a5 {[%clk 0:02:53.8]} 13. Ne3 {[%clk 0:02:37.8]} 13... Qxd3 {[%clk
0:02:50.5]} 14. cxd3 {[%clk 0:02:37.4]} 14... h5 {[%clk 0:02:50.1]} 15. Rb1
{[%clk 0:02:36.6]} 15... h4 {[%clk 0:02:48.6]} 16. Kd2 {[%clk 0:02:35]} 16...
Rh5 {[%clk 0:02:48]} 17. g4 {[%clk 0:02:32.7]} 17... hxg3 {[%clk 0:02:35.4]} 18.
hxg3 {[%clk 0:02:31.5]} 18... Rxh1 {[%clk 0:02:34.4]} 19. Rxh1 {[%clk 0:02:30]}
19... Kf7 {[%clk 0:02:32.6]} 20. c4 {[%clk 0:02:24.6]} 20... Rb8 {[%clk
0:02:23.7]} 21. Kc3 {[%clk 0:02:24.3]} 21... Bd7 {[%clk 0:02:20.2]} 22. Bc5
{[%clk 0:02:22.9]} 22... e5 {[%clk 0:02:03.5]} 23. Bxf8 {[%clk 0:02:21.3]} 23...
exd4+ {[%clk 0:02:02.6]} 24. Kxd4 {[%clk 0:02:21.2]} 24... Rxf8 {[%clk
0:02:03.5]} 25. Rb1 {[%clk 0:02:19.1]} 25... Ke6 {[%clk 0:01:53.3]} 26. Rb7
{[%clk 0:02:17.9]} 26... Rc8 {[%clk 0:01:48.7]} 27. Ra7 {[%clk 0:02:17.5]} 27...
a4 {[%clk 0:01:42.1]} 28. c5 {[%clk 0:02:12.8]} 28... g5 {[%clk 0:01:36.5]} 29.
Rxa4 {[%clk 0:02:05.6]} 29... f5 {[%clk 0:01:35.1]} 30. Ra7 {[%clk 0:02:03.1]}
30... Be8 {[%clk 0:01:29.2]} 31. a4 {[%clk 0:02:00.6]} 31... f4 {[%clk
0:01:27.6]} 32. gxf4 {[%clk 0:01:59.8]} 32... gxf4 {[%clk 0:01:28.5]} 33. Nc4
{[%clk 0:02:00.3]} 33... Rd8+ {[%clk 0:01:25.3]} 34. Kc3 {[%clk 0:01:59.4]}
34... Kd5 {[%clk 0:01:25.2]} 35. d4 {[%clk 0:01:53.2]} 35... Ke4 {[%clk
0:01:23.3]} 36. Nd2+ {[%clk 0:01:51.8]} 36... Kf5 {[%clk 0:01:20.1]} 37. Rxc7
{[%clk 0:01:50.9]} 37... Ra8 {[%clk 0:01:19.8]} 38. Nc4 {[%clk 0:01:47.6]} 38...
Kg4 {[%clk 0:01:17.6]} 39. Ne5+ {[%clk 0:01:45.3]} 39... Kf5 {[%clk 0:01:17.7]}
40. Nxc6 {[%clk 0:01:34.1]} 40... Rxa4 {[%clk 0:01:17.4]} 41. Nb4 {[%clk
0:01:31.7]} 41... Ke4 {[%clk 0:01:16]} 42. Re7+ {[%clk 0:01:30.5]} 1-0

[Event "*** Titled Tuesday Blitz"]
[Site "Chess.com"]
[Date "2021.02.16"]
[Round "9"]
[White "Guzman70"]
[Black "AttractiveMustard"]
[Result "0-1"]
[WhiteElo "2246"]
[BlackElo "2387"]
[TimeControl "180+1"]
[EndTime "11:46:02 PST"]
[Termination "AttractiveMustard won by resignation"]

1. d4 {[%clk 0:03:00.9]} 1... Nf6 {[%clk 0:02:58.2]} 2. Bf4 {[%clk 0:03:00.7]}
2... d5 {[%clk 0:02:57.4]} 3. e3 {[%clk 0:03:00.7]} 3... c5 {[%clk 0:02:57.7]}
4. Nd2 {[%clk 0:02:59.3]} 4... Nc6 {[%clk 0:02:57.1]} 5. c3 {[%clk 0:02:59.5]}
5... Bf5 {[%clk 0:02:56.4]} 6. Qb3 {[%clk 0:02:58.2]} 6... Qd7 {[%clk
0:02:51.9]} 7. dxc5 {[%clk 0:02:55.3]} 7... e5 {[%clk 0:02:34.9]} 8. Bg3 {[%clk
0:02:55.4]} 8... Bxc5 {[%clk 0:02:34.8]} 9. Ngf3 {[%clk 0:02:55.6]} 9... Qe7
{[%clk 0:02:29.8]} 10. Bb5 {[%clk 0:02:53.2]} 10... Bd6 {[%clk 0:02:29]} 11. c4
{[%clk 0:02:44.2]} 11... d4 {[%clk 0:02:14.9]} 12. exd4 {[%clk 0:02:40.6]} 12...
exd4+ {[%clk 0:02:13.6]} 13. Kf1 {[%clk 0:02:39.4]} 13... O-O {[%clk 0:02:04.3]}
14. Bxc6 {[%clk 0:02:32.8]} 14... bxc6 {[%clk 0:02:01.7]} 15. Nxd4 {[%clk
0:02:32.6]} 15... Bg6 {[%clk 0:01:45.3]} 16. Nxc6 {[%clk 0:02:27.7]} 16... Qd7
{[%clk 0:01:38.4]} 17. Bh4 {[%clk 0:01:28.1]} 17... Qxc6 {[%clk 0:01:33.3]} 18.
Bxf6 {[%clk 0:01:27.5]} 18... gxf6 {[%clk 0:01:32.6]} 19. Nf3 {[%clk 0:01:27]}
19... Rad8 {[%clk 0:01:25.1]} 20. h4 {[%clk 0:01:26.5]} 20... Bc5 {[%clk
0:01:15.5]} 21. h5 {[%clk 0:01:23.4]} 21... Be4 {[%clk 0:01:05.9]} 22. Rh3
{[%clk 0:01:20.7]} 22... Rd3 {[%clk 0:01:02.2]} 23. Rg3+ {[%clk 0:01:03.6]}
23... Kh8 {[%clk 0:01:02]} 24. Qc2 {[%clk 0:01:03.7]} 24... Rxf3 {[%clk
0:00:53.3]} 0-1

[Event "*** Titled Tuesday Blitz"]
[Site "Chess.com"]
[Date "2021.02.16"]
[Round "9"]
[White "esteban062000"]
[Black "Supernotar"]
[Result "0-1"]
[WhiteElo "2187"]
[BlackElo "2731"]
[TimeControl "180+1"]
[EndTime "11:46:06 PST"]
[Termination "Supernotar won by checkmate"]

1. Nf3 {[%clk 0:03:00.9]} 1... c5 {[%clk 0:02:59.6]} 2. c4 {[%clk 0:03:00.5]}
2... Nc6 {[%clk 0:02:59.4]} 3. b3 {[%clk 0:03:00.4]} 3... Nf6 {[%clk 0:02:58.9]}
4. g3 {[%clk 0:03:00.4]} 4... g6 {[%clk 0:02:59]} 5. Bb2 {[%clk 0:03:00.5]} 5...
Bg7 {[%clk 0:02:59.1]} 6. Bg2 {[%clk 0:03:00.8]} 6... O-O {[%clk 0:02:59.2]} 7.
O-O {[%clk 0:03:01]} 7... d5 {[%clk 0:02:57.2]} 8. cxd5 {[%clk 0:03:00.2]} 8...
Nxd5 {[%clk 0:02:58.1]} 9. Bxg7 {[%clk 0:02:59.9]} 9... Kxg7 {[%clk 0:02:59]}
10. Nc3 {[%clk 0:02:55.6]} 10... Nc7 {[%clk 0:02:55.3]} 11. Rc1 {[%clk
0:02:53.5]} 11... b6 {[%clk 0:02:54.8]} 12. Qc2 {[%clk 0:02:45.5]} 12... Bb7
{[%clk 0:02:53.8]} 13. Rfd1 {[%clk 0:02:44.9]} 13... Ne6 {[%clk 0:02:53.9]} 14.
Qb2 {[%clk 0:02:35.9]} 14... Kg8 {[%clk 0:02:53.6]} 15. e3 {[%clk 0:02:12.5]}
15... Qd7 {[%clk 0:02:52]} 16. Ne2 {[%clk 0:02:02.2]} 16... Rfd8 {[%clk
0:02:50.6]} 17. d4 {[%clk 0:01:34.1]} 17... cxd4 {[%clk 0:02:49.1]} 18. Nexd4
{[%clk 0:01:32.9]} 18... Nexd4 {[%clk 0:02:44.1]} 19. Nxd4 {[%clk 0:01:30.4]}
19... Ne5 {[%clk 0:02:38.8]} 20. Bxb7 {[%clk 0:00:42.2]} 20... Qxb7 {[%clk
0:02:39.7]} 21. Qe2 {[%clk 0:00:36.1]} 21... Rxd4 {[%clk 0:01:47.5]} 22. exd4
{[%clk 0:00:19]} 22... Nf3+ {[%clk 0:01:47.6]} 23. Kf1 {[%clk 0:00:19.3]} 23...
Nxd4 {[%clk 0:01:47.4]} 24. Rxd4 {[%clk 0:00:02.6]} 24... Qh1# {[%clk
0:01:46.5]} 0-1